{"text_format":"3","workbook":"xlsx","n_sheets":2,"sheets":["DATE DE CREȘTERE","DIAGRAMĂ DE CREȘTERE"],"not_rendered":{"charts":1,"defined_names":3},"read":"whole","date_system":"1900"}

{"sheet":"DATE DE CREȘTERE","index":0,"n_rows":23,"n_cols":8,"rows_kept":23,"merged":[[0,1,0,7],[1,2,1,7]]}
[null,"Creștere copii "]
[null,"Numele copilului:","Nume"]
[null,"Vârsta","Kilograme","Grame","Greutate (Kg)","Greutate\nProcent","Lungime (cm)","Lungime\nProcent"]
[null,"La naștere",7,null,{"$f":"IF(COUNT(Date[[#This Row],[Kilograme]:[Grame]])>0,Date[[#This Row],[Kilograme]]+(Date[[#This Row],[Grame]]/16),NA())","v":7},40,19.5,70]
[null,"4 zile",6,8,{"$f":"IF(COUNT(Date[[#This Row],[Kilograme]:[Grame]])>0,Date[[#This Row],[Kilograme]]+(Date[[#This Row],[Grame]]/16),NA())","v":6.5},41,19.5,70]
[null,"7 zile",6,4.8,{"$f":"IF(COUNT(Date[[#This Row],[Kilograme]:[Grame]])>0,Date[[#This Row],[Kilograme]]+(Date[[#This Row],[Grame]]/16),NA())","v":6.3},42,20,71]
[null,"11 zile",6,9.6,{"$f":"IF(COUNT(Date[[#This Row],[Kilograme]:[Grame]])>0,Date[[#This Row],[Kilograme]]+(Date[[#This Row],[Grame]]/16),NA())","v":6.6},43,20,71]
[null,"14 zile",7,null,{"$f":"IF(COUNT(Date[[#This Row],[Kilograme]:[Grame]])>0,Date[[#This Row],[Kilograme]]+(Date[[#This Row],[Grame]]/16),NA())","v":7},44,20,71]
[null,"18 zile",7,12,{"$f":"IF(COUNT(Date[[#This Row],[Kilograme]:[Grame]])>0,Date[[#This Row],[Kilograme]]+(Date[[#This Row],[Grame]]/16),NA())","v":7.75},45,21,72]
[null,"21 zile",8,8,{"$f":"IF(COUNT(Date[[#This Row],[Kilograme]:[Grame]])>0,Date[[#This Row],[Kilograme]]+(Date[[#This Row],[Grame]]/16),NA())","v":8.5},46,21,72]
[null,"25 zile",null,null,{"$f":"IF(COUNT(Date[[#This Row],[Kilograme]:[Grame]])>0,Date[[#This Row],[Kilograme]]+(Date[[#This Row],[Grame]]/16),NA())","v":{"$error":"#N/A"}}]
[null,"28 zile",null,null,{"$f":"IF(COUNT(Date[[#This Row],[Kilograme]:[Grame]])>0,Date[[#This Row],[Kilograme]]+(Date[[#This Row],[Grame]]/16),NA())","v":{"$error":"#N/A"}}]
[null,"5 săptămâni",null,null,{"$f":"IF(COUNT(Date[[#This Row],[Kilograme]:[Grame]])>0,Date[[#This Row],[Kilograme]]+(Date[[#This Row],[Grame]]/16),NA())","v":{"$error":"#N/A"}}]
[null,"6 săptămâni",null,null,{"$f":"IF(COUNT(Date[[#This Row],[Kilograme]:[Grame]])>0,Date[[#This Row],[Kilograme]]+(Date[[#This Row],[Grame]]/16),NA())","v":{"$error":"#N/A"}}]
[null,"7 săptămâni",null,null,{"$f":"IF(COUNT(Date[[#This Row],[Kilograme]:[Grame]])>0,Date[[#This Row],[Kilograme]]+(Date[[#This Row],[Grame]]/16),NA())","v":{"$error":"#N/A"}}]
[null,"2 luni",null,null,{"$f":"IF(COUNT(Date[[#This Row],[Kilograme]:[Grame]])>0,Date[[#This Row],[Kilograme]]+(Date[[#This Row],[Grame]]/16),NA())","v":{"$error":"#N/A"}}]
[null,"3 luni",null,null,{"$f":"IF(COUNT(Date[[#This Row],[Kilograme]:[Grame]])>0,Date[[#This Row],[Kilograme]]+(Date[[#This Row],[Grame]]/16),NA())","v":{"$error":"#N/A"}}]
[null,"6 luni",null,null,{"$f":"IF(COUNT(Date[[#This Row],[Kilograme]:[Grame]])>0,Date[[#This Row],[Kilograme]]+(Date[[#This Row],[Grame]]/16),NA())","v":{"$error":"#N/A"}}]
[null,"9 luni",null,null,{"$f":"IF(COUNT(Date[[#This Row],[Kilograme]:[Grame]])>0,Date[[#This Row],[Kilograme]]+(Date[[#This Row],[Grame]]/16),NA())","v":{"$error":"#N/A"}}]
[null,"12 luni",null,null,{"$f":"IF(COUNT(Date[[#This Row],[Kilograme]:[Grame]])>0,Date[[#This Row],[Kilograme]]+(Date[[#This Row],[Grame]]/16),NA())","v":{"$error":"#N/A"}}]
[null,"18 luni",null,null,{"$f":"IF(COUNT(Date[[#This Row],[Kilograme]:[Grame]])>0,Date[[#This Row],[Kilograme]]+(Date[[#This Row],[Grame]]/16),NA())","v":{"$error":"#N/A"}}]
[null,"24 luni",null,null,{"$f":"IF(COUNT(Date[[#This Row],[Kilograme]:[Grame]])>0,Date[[#This Row],[Kilograme]]+(Date[[#This Row],[Grame]]/16),NA())","v":{"$error":"#N/A"}}]
[null,"36 luni",null,null,{"$f":"IF(COUNT(Date[[#This Row],[Kilograme]:[Grame]])>0,Date[[#This Row],[Kilograme]]+(Date[[#This Row],[Grame]]/16),NA())","v":{"$error":"#N/A"}}]

{"sheet":"DIAGRAMĂ DE CREȘTERE","index":1,"n_rows":1,"n_cols":2,"rows_kept":1,"merged":[[0,1,1,1]]}
[null,"DIAGRAMĂ DE CREȘTERE PENTRU COPII"]